Cogmind - Beta 13 X1 @@@ ROGUE MODE // 2023.06.22 @ 00:48:38 Player: JackNine Result: Destroyed by X4-29M(R) with Subdweller Beam Cannon Performance ------------- Evolutions (0) 0 Regions Visited (2) 400 Robots Destroyed (34) 170 Value Destroyed (919) 919 Prototype IDs (2) 40 Alien Tech Used (0) 0 Bonus (0) 0 TOTAL SCORE: 1529 Bonus ------- None Cogmind --------- Core Integrity 0/250 Matter 284/300 Energy 175/200 System Corruption 0% Temperature Danger (492) Movement Treading (160) Location -10/Subcaves Parts ------- > --- POWER (1) -------- Subdweller Power Source > --- PROPULSION (2) --- Improved Treads > --- UTILITY (2) ------ (None) > --- WEAPON (2) ------- Subdweller Machine Gun Subdweller Machine Gun > --- INVENTORY (5) ---- Subdweller Power Source Large Storage Unit Subdweller Laser Subdweller Machine Gun Peak State ------------ > --- POWER ------------ Subdweller Power Source > --- PROPULSION ------- Improved Treads Subdweller Monowheel > --- UTILITY ---------- Scrap Shield > --- WEAPON ----------- Subdweller Laser Subdweller Machine Gun > --- INVENTORY -------- Light Ion Engine Improved Treads Large Storage Unit Subdweller Machine Gun Subdweller Machine Gun [Rating: 14] Favorites ----------- Power Light Ion Engine Engine Light Ion Engine Propulsion Improved Treads Treads Improved Treads Leg Aluminum Leg Wheel Wheel Utility Large Storage Unit Device Heat Sink Storage Large Storage Unit Processor Signal Interpreter Protection Scrap Shield Weapon Medium Laser Energy Gun Medium Laser Energy Cannon Subdweller Beam Cannon Ballistic Gun Subdweller Machine Gun Impact Weapon Hammer Build | -11 -10 -10 ------- Run | Jun Mat Sub Slots Evolved . | . . . Power . | . . . Propulsion . | . . . Utility . | . . . Weapon . | . . . Parts Attached 44 | 6 20 18 Power 4 | 1 2 1 Engine 4 | 1 2 1 Core . | . . . Reactor . | . . . Propulsion 12 | 2 6 4 Treads 7 | 1 3 3 Leg 1 | . 1 . Wheel 4 | 1 2 1 Hover . | . . . Flight . | . . . Utility 11 | 1 5 5 Device 5 | . 3 2 Storage 2 | 1 1 . Processor 1 | . 1 . Hackware . | . . . Protection 3 | . . 3 Artifact . | . . . Weapon 17 | 2 7 8 Energy Gun 11 | 2 5 4 Energy Cannon 1 | . . 1 Ballistic Gun 4 | . 1 3 Ballistic Cannon . | . . . Launcher . | . . . Special Weapon . | . . . Impact Weapon 1 | . 1 . Slashing Weapon . | . . . Piercing Weapon . | . . . Special Melee Weapon . | . . . Unidentified Prototypes . | . . . Parts Lost 7 | . 3 4 Power 1 | . 1 . Propulsion 3 | . 1 2 Utility 1 | . . 1 Weapon 2 | . 1 1 Highest Loss Streak 3 | . 3 2 To Critical Strikes . | . . . Average Slot Usage (%) 94 | . 99 86 Engine 13 | . 13 14 Treads 16 | . 14 22 Wheel 10 | . 13 5 Device 7 | . 9 1 Storage 9 | . 14 1 Processor 2 | . 3 . Protection 3 | . . 11 Energy Gun 20 | . 22 16 Ballistic Gun 4 | . 1 10 Impact Weapon 2 | . 3 . Naked Turns . | . . . Heaviest Build 31 | 11 30 31 Greatest Support 46 | 10 40 46 Greatest Overweight (x) 2 | 1 2 2 Average Overweight (x) 1 | . 1 . Largest Inventory Capacity 15 | 8 15 15 Average Capacity 10 | 7 13 6 Most Carried 15 | 5 15 15 Average Carried 8 | 3 10 5 Final Capacity 15 | 8 15 5 Final Carried 15 | 5 15 4 Class Distribution -------------------- 75% | Mutant 24% | Subdweller-Mutant Dominant Class ---------------- Mutant | -10/Materials Subdweller-Mutant | -10/Subcaves Resources | -11 -10 -10 ----------- Run | Jun Mat Sub Matter Collected 628 | 233 217 178 Remotely . | . . . Salvage Created 1148 | 40 731 377 Parts 67 | 8 42 17 Haulers Intercepted 2 | . 2 . Recyclers Shooed 1 | 1 . . Parts Field Recycled . | . . . Retrieved Matter . | . . . Parts Self-Destructed 1 | . . 1 Prevented . | . . . Kills | -11 -10 -10 ------- Run | Jun Mat Sub Combat Hostiles Destroyed 23 | . 12 11 Guns 22 | . 11 11 Classes Destroyed 7 | 1 5 1 Tunneler 5 | 2 3 . Hauler 2 | . 2 . Recycler 1 | . 1 . Watcher 3 | . 3 . Swarmer 2 | . 2 . Grunt 10 | . 10 . Subdweller 11 | . . 11 Best Kill Streak 5 | 2 4 5 Combat Bots Only 5 | . 4 5 Max Kills in Single Turn 2 | 1 2 1 Gunslinging 1 | . 1 . Exploded . | . . . Melee . | . . . Uniques/NPCs Destroyed . | . . . Combat | -11 -10 -10 -------- Run | Jun Mat Sub Damage Taken 2160 | . 693 1467 Core 268 | . 94 174 Absorbed by Shields . | . . . Regen/Repaired (Parts) 41 | . 41 . Core Remaining (%) 100 | 100 . . Volleys Fired 90 | 5 50 35 Largest 2 | 2 2 2 Hottest 100 | 80 100 100 Shots Fired 176 | 10 98 68 Gun 176 | 10 98 68 Cannon . | . . . Launcher . | . . . Special . | . . . Kinetic 22 | . 5 17 Thermal 116 | 5 60 51 Explosive . | . . . Electromagnetic 38 | 5 33 . Robot Hit Streak 16 | 2 13 16 Robot Miss Streak 3 | 3 3 2 Penetration Max . | . . . Secondary Targets 7 | . 4 3 Max Gunslinging Chain 1 | . 1 1 Shots Hit Robots 133 | 5 73 55 Core Hits 50 | 3 29 18 Critical Kills 1 | . . 1 Critical Parts Destroyed . | . . . Critical Strikes 6 | . 1 5 Burn 4 | . . 4 Destroy 1 | . . 1 Corrupt 1 | . 1 . Melee Attacks 8 | . 8 . Impact 8 | . 8 . Slashing . | . . . Piercing . | . . . Sneak Attacks 4 | . 4 . Combat Hostiles . | . . . Follow-up Attacks . | . . . Damage Inflicted 2104 | 70 1184 850 Guns 1780 | 70 860 850 Cannons . | . . . Explosions 75 | . 75 . Melee 249 | . 249 . Ramming . | . . . Kinetic 257 | . 26 231 Thermal 1243 | 32 592 619 Explosive . | . . . Electromagnetic 355 | 38 317 . Impact 249 | . 249 . Slashing . | . . . Piercing . | . . . Highest Corruption . | . . . Average Corruption . | . . . Corruption Purged . | . . . Corruption Blocked . | . . . Overload Shots . | . . . Overflow Damage 76 | . 76 . Projectiles . | . . . Explosions . | . . . Melee 76 | . 76 . Knockbacks 2 | . 2 . Impact 2 | . 2 . Kinetic . | . . . Secondary . | . . . Self-Inflicted Damage . | . . . Shots . | . . . Rammed . | . . . Targets Rammed . | . . . Kicked . | . . . Crushed . | . . . Highest Temperature 519 | 54 386 519 Average Temperature 107 | 25 100 298 Received Heat Transfer 1286 | . 438 848 Effects 3 | . 1 2 Shutdowns 1 | . . 1 Interference 1 | . 1 . Damage (minor) 1 | . . 1 Siege Activations . | . . . Robots Corrupted 1 | . 1 . Combat Hostiles 1 | . 1 . Parts Fried 4 | . 4 . Impact Corruptions 3 | . 3 . Robots Melted . | . . . Combat Hostiles . | . . . Parts Melted 2 | . 2 . Heat Transferred 3269 | 75 1500 1694 Parts Sabotaged . | . . . Parts Stolen . | . . . Parts Stripped . | . . . Power Chain Reactions 1 | . 1 . Missiles Intercepted . | . . . Alert | -11 -10 -10 ------- Run | Jun Mat Sub Peak Influence 171 | 10 171 . Initial 6 | . 6 . Average 52 | 1 55 . Maximum Alert Level . | . . . Low Security (%) 100 | 100 100 . Level 1 . | . . . Level 2 . | . . . Level 3 . | . . . Level 4 . | . . . Level 5 . | . . . High Security . | . . . Max Security . | . . . Squads Dispatched 4 | . 4 . Investigation 2 | . 2 . Extermination . | . . . Reinforcement 2 | . 2 . Assault . | . . . Garrison . | . . . Intercept . | . . . Searches Triggered . | . . . Construction Impeded . | . . . Haulers Reinforced . | . . . Active Scanning Responses . | . . . Cargo Convoy Interrupts . | . . . Stealth | -11 -10 -10 --------- Run | Jun Mat Sub Distress Signals . | . . . Communications Jammed . | . . . Distress Signals . | . . . Times Spotted 37 | . 18 19 Peak Tracking Total 11 | . 5 11 Tactical Retreats 1 | . 1 . Traps | -11 -10 -10 ------- Run | Jun Mat Sub Traps Triggered 1 | . 1 . Indirectly . | . . . Trap Hack Attempts . | . . . Triggered . | . . . Disarmed . | . . . Reprogrammed . | . . . Reused . | . . . Traps Extracted . | . . . Installed . | . . . Triggered . | . . . Machines | -11 -10 -10 ---------- Run | Jun Mat Sub Machines Disabled . | . . . Max in Single Turn . | . . . Machines Repaired . | . . . Machines Sabotaged . | . . . Overloaded Fab Kills . | . . . Hacking | -11 -10 -10 --------- Run | Jun Mat Sub Machines Accessed 8 | . 8 . Terminals 6 | . 6 . Fabricators . | . . . Repair Stations 1 | . 1 . Recycling Units 1 | . 1 . Scanalyzers . | . . . Garrison Access . | . . . Total Hacks 20 | . 20 . Successful 8 | . 8 . Failed 12 | . 12 . Catastrophic 4 | . 4 . Database Lockouts . | . . . Manual 17 | . 17 . Terminals 16 | . 16 . Fabricators . | . . . Repair Stations 2 | . 2 . Recycling Units 2 | . 2 . Scanalyzers . | . . . Garrison Access . | . . . Terminal Hacks 3 | . 3 . Robot Analysis 2 | . 2 . Prototype ID Bank 1 | . 1 . Fabricator Hacks . | . . . Repair Station Hacks 2 | . 2 . Scan Component 1 | . 1 . Repair 1 | . 1 . Recycling Unit Hacks 1 | . 1 . Report Inventory 1 | . 1 . Scanalyzer . | . . . Garrison Access Hacks . | . . . Unauthorized Hacks 2 | . 2 . Terminals 1 | . 1 . Botnet 1 | . 1 . Fabricators . | . . . Repair Stations . | . . . Recycling Units 1 | . 1 . Tunnel 1 | . 1 . Scanalyzers . | . . . Garrison Access . | . . . Data Cores Recovered . | . . . Used . | . . . Hacking Detections 8 | . 8 . Full Trace Events 1 | . 1 . Feedback Events . | . . . Feedback Blocked . | . . . Robot Schematics Acquired . | . . . Robots Built . | . . . Authchips . | . . . Time . | . . . Total Robot Build Rating . | . . . Part Schematics Acquired . | . . . Parts Built . | . . . Authchips . | . . . Time . | . . . Total Part Build Rating . | . . . Parts Repaired 1 | . 1 . Time 26 | . 26 . Parts Recycled . | . . . Recycled Matter . | . . . Retrieved Matter . | . . . Retrieved Components . | . . . Parts Scanalyzed . | . . . Part Schematics Acquired . | . . . Parts Damaged . | . . . Bothacking | -11 -10 -10 ------------ Run | Jun Mat Sub Used RIF Installer . | . . . Robots Hacked . | . . . Non-combat . | . . . Combat . | . . . Robot Hacks Applied . | . . . Relay Couplers Released . | . . . Fabnet Peak Effective % . | . . . Robots Rewired . | . . . Allies Hacked . | . . . Hacks Repelled . | . . . Allies | -11 -10 -10 -------- Run | Jun Mat Sub Total Allies . | . . . Largest Group . | . . . Highest-Rated Group . | . . . Highest-Rated Ally . | . . . Total Orders . | . . . Ally Attacks . | . . . Total Damage . | . . . Kills . | . . . Allies Corrupted . | . . . Allies Melted . | . . . Intel | -11 -10 -10 ------- Run | Jun Mat Sub Robot Analysis Total 2 | . 2 . Derelict Logs Recovered . | . . . Drone Launches . | . . . Drone Recoveries . | . . . Exploration | -11 -10 -10 ------------- Run | Jun Mat Sub Turns Passed 2294 | 72 1478 744 Spaces Moved 1494 | 48 1034 412 Core 4 | 4 . . Treads 336 | . 109 227 Legs . | . . . Wheels 1154 | 44 925 185 Hover . | . . . Flight . | . . . Fastest Speed 50 | 50 80 110 Average Speed 122 | 88 117 140 Slowest Speed 240 | 95 240 160 Overloaded Moves . | . . . Propulsion Burnouts . | . . . Robots Hopped . | . . . Cave-ins Triggered . | . . . Exploration Rate (%) 44 | 3 97 34 Regions Visited 2 Branch Regions 1 Pre-discovered Areas 1 | . 1 . Known Exits Taken . | . . . Unknown Exits Taken 2 | 1 1 . Scrap Searched . | . . . Spaces Dug 2 | . 2 . Terrain Destroyed 8 | . 8 . Melee 2 | . 2 . Projectile . | . . . AOE 6 | . 6 . Terrain Rammed . | . . . Walls Destroyed . | . . . Machines Disabled . | . . . Actions | -11 -10 -10 --------- Run | Jun Mat Sub Total 1775 | 64 1195 516 Wait 64 | 1 48 15 Move 1492 | 47 1033 412 Hop . | . . . Pick Up 30 | 5 17 8 Fast Attach 20 | 6 6 8 Attach 6 | . 3 3 Detach 6 | . 5 1 Swap 18 | . 11 7 Drop 36 | . 14 22 Fire 90 | 5 50 35 Melee 8 | . 8 . Ram . | . . . Kick . | . . . Crush . | . . . Escape Stasis . | . . . Rewire . | . . . Trap . | . . . Miscellaneous 5 | . . 5 Route ------- -11/Junkyard -10/Materials (discovered 5 exits: *Mat x3 / [*Min] / [*Sub]) -10/Subcaves History --------- Turn | Location | Event 8 | -11/Junkyard | Discovered new exit (range 15) 73 | -11/Junkyard | Entered Materials 188 | -10/Materials | Discovered new exit (range 16) 211 | -10/Materials | Identified exit to Materials 313 | -10/Materials | Build established: Mutant 410 | -10/Materials | Lost 3 parts (1p1n1w) 512 | -10/Materials | Discovered exit to Materials (range 16) 899 | -10/Materials | Repaired Lgt. Treads 931 | -10/Materials | Discovered exit to Materials (range 6) 1200 | -10/Materials | Discovered new exit (range 13) 1356 | -10/Materials | Discovered new exit (range 7) 1551 | -10/Materials | Entered Subcaves 1626 | -10/Subcaves | Ambushed by swarm of Subdwellers 1644 | -10/Subcaves | Core integrity fell below 50% 1656 | -10/Subcaves | Ambushed by angry Subdweller bent on revenge 1822 | -10/Subcaves | Shifting Twisted Machinery released Sub. Beam Cannon 1840 | -10/Subcaves | Core integrity fell below 20% 1853 | -10/Subcaves | Shifting Twisted Machinery released Sub. Machine Gun 2004 | -10/Subcaves | Build established: Subdweller-Mutant 2270 | -10/Subcaves | A Subdweller sparked back to life 2270 | -10/Subcaves | A Subdweller sparked back to life 2295 | -10/Subcaves | Destroyed by X4-29M(R) with Subdweller Beam Cannon Last Messages --------------- 01910_ Dropped Broken Sub. Monowheel. 01915_ Acquired 10 matter. 01979_ Dropped Scrap Shield. 01980_ Acquired Cobbler Unit. 01981_ Dropped Cobbler Unit. 01983_ Acquired Scrap Shield. 01988_ Acquired 20 matter. 02053_ YR-2G8(R) destroyed. 02091_ Acquired 4 matter. 02270_ C3-N0F(R) creaks and sparks as it begins to move. 02270_ X4-29M(R) creaks and sparks as it begins to move. 02276_ X4-29M(R) affixes Scrap Shield Fragment to Scrap Shield. 02279_ EI-RS2(R) destroyed. 02279_ Switching to secondary target: C3-N0F(R). 02283_ Scrap Shield destroyed. 02283_ Critical hit (Meltdown: +260). 02291_ Imp. Treads destroyed. 02293_ Critical hit (Meltdown: +270). 02294_ Power failure, Sub. Power Source shutdown. 02294_ Overheating: Sub. Laser damaged (-5). Map ----- +----------------------------------------------------+ | ?????????????????????????????????????????????????? | | ?????????????????????????????????????????????????? | | ?????????????????????????????????????????????????? | | ?????????????????????????????????????????????????? | | ?????????????????????????????????????????????????? | | ?????????????????????????????????????????????????? | | ?????????????????????????????????????????????????? | | ?????????????????????????????????????????????????? | | ?????????????????????????????????????????????????? | | ?????????????????????????????????????????????????? | | ?????????????????????????????????????????????????? | | ?????????????????????????????????????????????????? | | ?????????????????????????????????????????????????? | | ?????????????????????????????????????????????????? | | ?????????????????????????????????????????????????? | | ?????????????????????????????????????????????????? | | ???????????????????????????????##????????????????? | | ?????????????????????????????? #????????????????? | | ?????????????????????????????< ##???????????????? | | ?????????????????????????#### < #???????????????? | | ????????????????????????## #< ????????????????? | | ????????????????????????# R ??????????????????? | | ???????????????????????## [R ???????????????????? | | ???????????????????????# %!????????????????????? | | ???????????????????????# #?????????????????????? | | ???????????????????????# @ ##????######??????????? | | ??????????????????????#;# ###### ###?######## | | ???????????????????????## ### ## | | ???????????????????????# | | ???????????????????????# | | ???????????????????????# #### ## | | ????????????????????? #?# ####### # | | ???????????????????# ^ #?# ##????## ### ## | | ?????????????????? #?# ???### ######? | | ???????????????? ?# ## # ##? | | ??????????????? ## ?# ## | | ?????????????????# ?## ## | | ????????????????# ^ ??#####??### ## # | | ???????????????? ??????????# ####### | | ???????????????? ## ??????????# ????## | | ?????????????????? ?? ?????####### #?#### | | ??????????????????????#?? ????? # ?# | | ????????????????????????????????? ### | | ??????????????????????????????????? ### | | ????????????????????????????????????? # | | ????????????????????????????????????#### # | | ????????????????????????????????????????# % | | ????????????????????????????????????????## | | ?????????????????????????????????????????# # | | ????????????????????????????????????????## #### | +----------------------------------------------------+ Best States ------------- Heat Dissipation 35 Energy Generation 15 Energy Capacity 250 Matter Stores 300 Matter Capacity 300 Sight Range 16 Terrain Scan Density 10 Armor Coverage 800 Evasion (%) 44 Recoil Reduction 2 Item Schematics ----------------- None Robot Schematics ------------------ None Fabricated ------------ Nothing Alien Tech Used ----------------- None Achievements -------------- None Challenges ------------ None Game ------ Seed ImpactCloakingBank Manual? 0 Play Time 00:32:12 Cumulative 339.4 hours Start 2023.06.22 @ 00:08:51 End 2023.06.22 @ 00:48:38 Sessions 1 Manual Loads 0 Difficulty Rogue Special Mode None Game No. 171 Rogue 171 Adventurer 0 Explorer 0 Win Type - Total 11 Types 6/0/3/0/0/0/2/0/0 Lore% 80 Gallery% 87 Achievement% 78 Wizard Run 0 Options --------- ASCII 0 Keyboard 1 Movement Numpad Keybinds 0 Fullscreen 2 Font 12/Smallcaps Map View 83x54 Tactical HUD 1 Map Filters NONE Filters NONE Steam 1 RUN: c52772f9-1227-4a2f-a8b0-85c73eea5280